[Event "1st Sales Oliveira Masters 2022"]
[Site "Sales Oliveira"]
[Date "2022.06.11"]
[Round "7.1"]
[White "Rodi, Luis Ernesto"]
[Black "Fier, Alexandr"]
[Result "1/2-1/2"]
[ECO "B43"]
[WhiteElo "2351"]
[BlackElo "2567"]
[Annotator "TA"]
[PlyCount "111"]
[EventDate "2022.05.30"]
[EventType "swiss"]
[EventCountry "BRA"]
[SourceTitle "playchess.com"]
[Source "ChessBase"]
[SourceQuality "1"]
[TimeControl "40/5400+30:1800+30"]

{[%evp 16,111,-8,-6,0,0,-2,-29,0,0,0,0,0,0,0,8,8,-72,-80,-93,-102,-213,-202,-196,-208,-214,-174,-164,-73,-73,-73,-73,-73,-79,-86,-89,-60,-60,-66,-66,-67,-73,-62,-71,-66,-72,-62,-57,-43,-53,-42,-72,-72,-72,-52,-58,-52,-73,-73,-73,-73,-77,-73,-73,0,-77,-77,-77,-77,-77,-77,-78,-78,-103,-77,-91,-77,-77,-42,-42,-42,-42,-9,-14,-8,-14,-15,-22,-17,-24,-8,-8,-8,-8,-8,-8,-8,-8]} 1. e4 {[%emt 0:00:08]} c5 {[%emt 0:00:04]} 2. Nc3 {[%emt 0:00:06]} e6 {[%emt 0:00:04]} 3. Nf3 {[%emt 0:00:06]} a6 {[%emt 0:00:04]} 4. g3 {[%emt 0:00:09]} b5 {[%emt 0:00:04]} 5. Bg2 {[%emt 0:00:13]} Bb7 {[%emt 0:00:04]} 6. d4 {[%emt 0:00:07]} cxd4 {[%emt 0:00:03]} 7. Nxd4 {[%emt 0:00:07]} Nf6 {[%emt 0:02:34]} 8. O-O {[%emt 0:01:06]} b4 {[%emt 0:01:00]} 9. Na4 {[%emt 0:00:06]} Bxe4 {[%emt 0:00:04] B43: Sicilian: Kan Variation: 5 Nc3.} 10. Bxe4 {[%emt 0:00:07]} Nxe4 {[%emt 0:00:03]} 11. c4 {[%emt 0:00:11]} Nc5 {[%emt 0:01:49] Black has an edge.} 12. a3 {[%emt 0:00:55]} Nxa4 {[%emt 0:12:19]} 13. Qxa4 {[%emt 0:01:05] [#]} Qb6 $146 {[%emt 0:04:54]} ({Predecessor:} 13... bxa3 14. b4 Be7 15. Bxa3 O-O 16. Rfd1 Qc7 17. b5 Bxa3 18. Rxa3 d6 19. Nb3 Nd7 20. bxa6 {1-0 (38) Cornette,D (2448)-Holm,K (2468) Chess.com INT 2019}) 14. Be3 {[%emt 0:01:50] Strongly threatening axb4.} Qb7 {[%emt 0:00:04]} 15. axb4 {[%emt 0:01:28]} Bxb4 {[%emt 0:02:31]} 16. Nb5 {[%emt 0:01:14]} Be7 $1 $17 {[%emt 0:00:30]} 17. Bf4 {[%emt 0:13:20] Hoping for Nc7+.} O-O {[%emt 0:00:23]} 18. Nc7 {[%emt 0:00:13] [#]} (18. Rfd1 $17 {was necessary.}) 18... g5 $1 $19 {[%emt 0:04:04]} 19. Bxg5 {[%emt 0:02:11]} Bxg5 {[%emt 0:00:15]} 20. Nxa8 {[%emt 0:00:05]} Qxa8 {[%emt 0:00:05]} 21. b4 {[%emt 0:00:06] [#]} Nc6 {[%emt 0:03:00]} (21... Bf6 $1 $19 {[%cal Rf6a1]} 22. Ra3 Nc6 23. Qxa6 Qxa6 24. Rxa6 Nxb4) 22. Qxa6 $17 {[%emt 0:05:40]} ({Don't blunder} 22. b5 $2 Nd4 23. Qd1 Nf3+ 24. Kh1 Nd2+ 25. Kg1 Nxf1 26. Qxf1 a5 $19) 22... Qxa6 {[%emt 0:00:11]} 23. Rxa6 {[%emt 0:00:06]} Nxb4 {[%emt 0:00:02]} 24. Rd6 {[%emt 0:00:09]} Rc8 {[%emt 0:00:20]} 25. Rxd7 {[%emt 0:00:15]} Rxc4 {[%emt 0:00:04]} 26. Ra1 $1 {[%emt 0:00:25]} Rc8 {[%emt 0:03:41] Against Ra8} 27. Raa7 {[%emt 0:02:58]} Rf8 {[%emt 0:00:04]} 28. Ra4 {[%emt 0:00:08]} Rb8 {[%emt 0:00:23]} 29. Raa7 {[%emt 0:00:07]} Nc6 {[%emt 0:00:28]} 30. Rab7 {[%emt 0:02:46] Prevents Rb1+.} Rxb7 {[%emt 0:00:04]} 31. Rxb7 {[%emt 0:00:07]} Kg7 {[%emt 0:01:49]} 32. Kg2 {[%emt 0:00:16]} Kg6 {[%emt 0:00:04]} 33. Rc7 {[%emt 0:00:31]} Nb4 {[%emt 0:00:10]} 34. Rc8 {[%emt 0:00:26]} Nd5 {[%emt 0:00:29]} 35. Rg8+ {[%emt 0:00:33]} Kf6 {[%emt 0:00:05]} 36. Rh8 {[%emt 0:00:09]} Kg7 {[%emt 0:00:05]} 37. Ra8 {[%emt 0:00:12]} Be7 {[%emt 0:00:04]} 38. Rc8 {[%emt 0:00:20]} Bb4 {[%emt 0:00:12]} 39. Rc4 {[%emt 0:00:42]} Be7 {[%emt 0:01:48]} 40. Rc8 $1 {[%emt 0:00:18]} e5 {[%emt 0:01:10] Against f4} 41. Rc4 {[%emt 0:33:36]} f5 {[%emt 0:30:25]} 42. Rc6 {[%emt 0:02:05]} Kf7 {[%emt 0:00:04]} 43. Ra6 {[%emt 0:00:12]} h5 {[%emt 0:00:10]} 44. Rc6 {[%emt 0:00:14]} Nf6 {[%emt 0:01:32]} 45. Ra6 {[%emt 0:00:39]} Bc5 {[%emt 0:00:08]} 46. f3 {[%emt 0:00:39]} Bd4 {[%emt 0:01:20]} 47. Ra5 {[%emt 0:00:43]} Kg6 {[%emt 0:00:49]} 48. Ra6 {[%emt 0:00:09]} Kg5 {[%emt 0:02:51]} 49. Rd6 {[%emt 0:00:33]} Be3 {[%emt 0:01:33]} 50. Re6 {[%emt 0:00:58]} e4 {[%emt 0:00:34]} 51. h3 {[%emt 0:08:08]} Kg6 {[%emt 0:02:05]} 52. g4 {[%emt 0:03:03]} Bg5 {[%emt 0:01:15] White must now prevent ...exf3+.} 53. gxf5+ {[%emt 0:00:46] The position is equal.} Kxf5 {[%emt 0:00:03]} 54. Rxf6+ {[%emt 0:00:25][%mdl 64] Remove Defender} Bxf6 {[%emt 0:00:04]} 55. fxe4+ {[%emt 0:00:06]} Kxe4 {[%emt 0:00:03]} 56. h4 {[%emt 0:00:11] And White is the lucky defender.  Weighted Error Value: White=0.09 (flawless) /Black=0.10 (very precise)} 1/2-1/2

[Event "1st Sales Oliveira Masters 2022"]
[Site "Sales Oliveira"]
[Date "2022.06.11"]
[Round "7.2"]
[White "Diamant, Andre"]
[Black "Lima, Darcy"]
[Result "1/2-1/2"]
[ECO "C98"]
[WhiteElo "2539"]
[BlackElo "2488"]
[Annotator "TA"]
[PlyCount "46"]
[EventDate "2022.05.30"]
[EventType "swiss"]
[EventCountry "BRA"]
[SourceTitle "playchess.com"]
[Source "ChessBase"]
[SourceQuality "1"]
[TimeControl "40/5400+30:1800+30"]

{[%evp 26,46,59,56,65,40,93,62,61,62,67,66,62,68,68,62,58,54,60,73,77,39,336]} 1. e4 {[%emt 0:00:07]} e5 {[%emt 0:00:35]} 2. Nf3 {[%emt 0:00:08]} Nc6 {[%emt 0:00:12]} 3. Bb5 {[%emt 0:00:08][%cal Bf1b5,Bb5a4,Ba4b3][%mdl 32]} a6 {[%emt 0:00:40]} 4. Ba4 {[%emt 0:00:06]} Nf6 {[%emt 0:00:07]} 5. O-O {[%emt 0:00:17]} Be7 {[%emt 0:00:14]} 6. Re1 {[%emt 0:00:10]} b5 {[%emt 0:00:13]} 7. Bb3 {[%emt 0:00:05]} d6 {[%emt 0:00:14]} 8. c3 {[%emt 0:00:32]} O-O {[%emt 0:00:25]} 9. h3 {[%emt 0:00:20]} Na5 {[%emt 0:00:22]} 10. Bc2 {[%emt 0:00:17]} c5 {[%emt 0:00:11]} 11. d4 {[%emt 0:00:16]} Qc7 {[%emt 0:00:32]} 12. Nbd2 {[%emt 0:00:11][%cal Bb1d2,Bd2f1,Bf1g3][%mdl 32]} Nc6 {[%emt 0:00:16]} 13. d5 {[%emt 0:00:53]} Nd8 {[%emt 0:00:07]} 14. a4 {[%emt 0:00:14]} Rb8 {[%emt 0:00:15] C98: Closed Ruy Lopez: Chigorin Defence: 11 d4 Qc7 12 Nbd2 Nc6.} 15. Nf1 {[%emt 0:00:22]} Ne8 {[%emt 0:00:10]} (15... c4 $14) 16. g4 {[%emt 0:00:51]} g6 {[%emt 0:00:14]} 17. Ng3 {[%emt 0:00:21]} Ng7 {[%emt 0:00:12]} 18. Bh6 {[%emt 0:00:26]} f6 {[%emt 0:00:58] [#]} 19. Kh2 $146 {[%emt 0:00:08]} ({Predecessor:} 19. axb5 axb5 20. Qd2 Nf7 21. Be3 Bd7 22. Kh2 Ra8 23. Rac1 Rfb8 24. Rg1 Kh8 25. Rg2 Qb7 26. Rcg1 b4 27. c4 Rg8 {0-1 (56) Guliev,L (2436)-Bruned,Y (2383) Balaguer 2008}) 19... Nf7 {[%emt 0:00:22]} 20. Be3 {[%emt 0:00:25] White is more active.} Bd7 {[%emt 0:03:25]} 21. Rg1 {[%emt 0:00:18]} Kh8 {[%emt 0:00:27]} 22. Nd2 {[%emt 0:00:40]} Qc8 {[%emt 0:05:20]} 23. axb5 {[%emt 0:02:22]} Qc7 $2 {[%emt 1:26:29][%mdl 40960] Weighted Error Value: White=0.09 (flawless) /Black=0.06 (flawless) . An unexpected result.} (23... axb5 $14 24. f3 Ra8) 1/2-1/2

[Event "1st Sales Oliveira Masters 2022"]
[Site "Sales Oliveira"]
[Date "2022.06.11"]
[Round "7.3"]
[White "Supi, Luis Paulo"]
[Black "Born, Carlos Rodrigo"]
[Result "1-0"]
[ECO "B92"]
[WhiteElo "2590"]
[BlackElo "2292"]
[Annotator "TA"]
[PlyCount "131"]
[EventDate "2022.05.30"]
[EventType "swiss"]
[EventCountry "BRA"]
[SourceTitle "playchess.com"]
[Source "ChessBase"]
[SourceQuality "1"]
[TimeControl "40/5400+30:1800+30"]

{[%evp 15,131,13,32,21,28,25,22,29,51,6,67,72,77,0,0,0,15,0,23,0,172,176,163,175,166,172,173,173,143,109,108,107,116,69,125,144,118,94,100,72,154,91,91,93,129,89,108,74,103,11,11,11,11,11,11,11,11,11,11,11,11,11,11,4,11,11,11,11,11,11,24,11,44,39,58,0,47,11,11,0,11,2,11,2,11,0,11,0,11,0,11,11,11,0,2,2,95,102,111,109,102,0,100,78,104,61,110,77,116,117,232,232,229,222,580,554,1202,1133]} 1. e4 {[%emt 0:00:05]} c5 {[%emt 0:00:04]} 2. Nf3 {[%emt 0:00:04]} d6 {[%emt 0:00:01]} 3. d4 {[%emt 0:00:18]} cxd4 {[%emt 0:00:01]} 4. Nxd4 {[%emt 0:00:06]} Nf6 {[%emt 0:00:05]} 5. Nc3 {[%emt 0:00:04]} a6 {[%emt 0:00:02]} 6. Be2 {[%emt 0:00:05]} e5 {[%emt 0:00:22]} 7. Nb3 {[%emt 0:00:03]} Be6 {[%emt 0:00:43]} 8. Be3 {[%emt 0:00:11]} Nbd7 {[%emt 0:00:08]} 9. f4 {[%emt 0:00:06] B92: Sicilian Najdorf: 6 Be2.} exf4 {[%emt 0:07:12] has lost popularity (9...Qc7).} 10. Bxf4 {[%emt 0:00:15]} Ne5 {[%emt 0:00:02]} 11. Qd4 {[%emt 0:00:21] The position is equal.} Qc7 {[%emt 0:00:20]} 12. Qa4+ {[%emt 0:01:53] [#]} Nfd7 $146 {[%emt 0:06:37]} (12... Bd7 $11 13. Bb5 Rc8 14. Bxd7+ Nfxd7) ({Predecessor:} 12... Bd7 13. Bb5 Be7 14. O-O-O O-O 15. Bxd7 Nexd7 16. g4 Rfc8 17. g5 Nh5 18. Be3 b5 {½-½ (25) Willmann,B (2216)-Helmer,J (2157) LSS email 2016}) 13. Nd4 $14 {[%emt 0:00:39]} O-O-O {[%emt 0:05:51]} 14. Nd5 {[%emt 0:13:57]} (14. Bg5 $16) 14... Bxd5 $11 {[%emt 0:07:47]} 15. exd5 {[%emt 0:00:25]} g6 {[%emt 0:00:15]} 16. O-O-O $36 {[%emt 0:03:34][%mdl 2048] White fights for an advantage.} h5 {[%emt 0:00:38]} 17. h4 {[%emt 0:01:28] aiming for Rh3.} (17. Kb1 $5 {[%cal Rf4d2]}) 17... Bh6 $2 {[%emt 0:01:54]} (17... Nb6 $11 {and Black has nothing to worry.} 18. Qb3 Re8) 18. Bxh6 $18 {[%emt 0:00:06]} Rxh6 {[%emt 0:00:04]} 19. Rh3 $1 {[%emt 0:00:04]} Nc5 {[%emt 0:00:54]} 20. Qa3 {[%emt 0:00:26] Black must now prevent Rc3.} a5 {[%emt 0:06:58]} 21. Rc3 $1 {[%emt 0:06:26]} Kd7 {[%emt 0:00:19]} 22. Rf1 {[%emt 0:09:38]} Qb6 {[%emt 0:12:25]} (22... Kc8 $2 23. Nb5 Qb6 24. Nxd6+ $1 {[%mdl 512]} Qxd6 25. Rxc5+ Kb8 26. Qxa5 $18) 23. Nb3 {[%emt 0:06:47][%cal Rb3c5]} Rc8 {[%emt 0:02:35]} 24. Kb1 {[%emt 0:00:33]} (24. Nxa5 $16 {Re3 is the strong threat.} f5 25. Nc4 Nxc4 26. Rxc4 (26. Bxc4 Rhh8 $16)) 24... Nxb3 {[%emt 0:01:58]} (24... f5 $14) 25. Rxb3 $16 {[%emt 0:03:29] The board is on fire.} ({Much worse is} 25. axb3 $6 Rhh8 $11) (25. cxb3 $6 Rxc3 26. bxc3 Rh8 $11) 25... Qc7 {[%emt 0:00:40]} 26. Qa4+ {[%emt 0:05:41]} Kd8 {[%emt 0:00:51]} 27. Rc1 {[%emt 0:02:01]} Rb8 {[%emt 0:08:39] [#]} (27... Rh8 $142) 28. Qf4 {[%emt 0:07:09]} (28. Rc3 $142 $1 {[%cal Rc3c7]} Qb6 29. Ra3 (29. Qf4 Rh7 $14)) 28... Rh7 {[%emt 0:00:07]} 29. Rc3 {[%emt 0:01:56]} Qb6 {[%emt 0:00:34]} 30. Re3 {[%emt 0:00:06]} Qc7 {[%emt 0:01:26]} 31. Qd4 {[%emt 0:00:22] And now Rc3 would win.} (31. a3 {seems wilder.} b5 32. Rc3 Qa7 33. Rb3) 31... Ke7 {[%emt 0:00:51]} 32. Rc3 {[%emt 0:00:51] White is much more active. The black rooks are badly placed.} (32. g4 $16) 32... Qd8 $11 {[%emt 0:00:07]} 33. a4 {[%emt 0:04:20]} Kf8 {[%emt 0:01:35]} 34. Rh1 {[%emt 0:00:08][%cal Bc1h1,Bh1h3,Bh3c3][%mdl 32]} f5 {[%emt 0:01:43]} 35. Rhh3 {[%emt 0:00:18]} b6 {[%emt 0:01:46]} 36. Rb3 {[%emt 0:00:15]} Rhb7 {[%emt 0:00:50]} 37. Rhc3 {[%emt 0:00:23]} Kf7 {[%emt 0:00:27]} 38. Bb5 {[%emt 0:00:51]} Re7 {[%emt 0:00:30]} 39. g3 {[%emt 0:00:30]} Rc7 {[%emt 0:00:30]} 40. Bc6 {[%emt 0:00:30]} Ra7 {[%emt 0:00:30]} 41. Re3 {[%emt 0:30:30]} Kg8 {[%emt 0:30:30]} 42. Rb5 {[%emt 0:00:30]} Kh7 {[%emt 0:00:30]} 43. Ka2 {[%emt 0:00:30]} Kg8 {[%emt 0:00:30]} 44. Reb3 {[%emt 0:00:30][%cal Rb5b6]} Ra6 {[%emt 0:00:30]} 45. Re3 {[%emt 0:00:30] Threatens to win with Rxe5.} (45. c4 $5 {[%cal Rc4c5]}) 45... Ra7 {[%emt 0:00:30]} 46. Rbb3 {[%emt 0:00:30]} (46. Rxe5 $5 dxe5 47. Qxe5 $14) 46... Re7 {[%emt 0:00:30]} 47. Kb1 {[%emt 0:00:30]} Kh7 {[%emt 0:00:30]} 48. Rbc3 {[%emt 0:00:30]} Rc8 {[%emt 0:00:30]} 49. Ka2 {[%emt 0:00:30]} Kg8 {[%emt 0:00:30]} 50. Rb3 {[%emt 0:00:30]} Rb8 {[%emt 0:00:30]} 51. Kb1 {[%emt 0:00:30]} Kh7 {[%emt 0:00:30]} 52. Ka2 {[%emt 0:00:30]} Kg8 {[%emt 0:00:30]} 53. Bb5 {[%emt 0:00:30]} Rc8 {[%emt 0:00:30]} 54. Rec3 {[%emt 0:00:30]} Rxc3 {[%emt 0:00:30]} 55. Rxc3 {[%emt 0:00:30]} Ra7 {[%emt 0:00:30] Prevents Ba6.} (55... Rb7 $11 {remains equal.}) 56. Bc6 $16 {[%emt 0:00:30]} Qc7 {[%emt 0:00:30]} 57. Kb1 {[%emt 0:00:30]} Kh7 {[%emt 0:00:30]} 58. Ka2 {[%emt 0:00:30]} Kg8 {[%emt 0:01:36]} 59. Qe3 {[%emt 0:12:50]} Kh7 {[%emt 0:00:21]} 60. Kb1 {[%emt 0:00:14]} Kg7 {[%emt 0:00:30]} (60... Ng4 $14 61. Qe6 Ne5) 61. Rb3 {[%emt 0:00:30]} Ra6 {[%emt 0:00:30]} 62. Qe2 {[%emt 0:00:30]} Qc8 {[%emt 0:00:30]} (62... Ra7 $16 {might work better.}) 63. Qb5 $18 {[%emt 0:00:30]} Kh7 {[%emt 0:00:30]} 64. Rc3 {[%emt 0:00:30]} Kg7 $2 {[%emt 0:00:30] [#]} (64... Ra7 {is more resistant.} 65. Qxb6 Qc7) 65. Bd7 $1 {[%emt 0:00:30][%mdl 512]} Qb7 {[%emt 0:00:30]} (65... Qxd7 66. Qxa6) 66. Bc8 {[%emt 0:00:30] Weighted Error Value: White=0.16 (very precise) /Black=0.26 (precise)} 1-0

[Event "1st Sales Oliveira Masters 2022"]
[Site "Sales Oliveira"]
[Date "2022.06.11"]
[Round "7.4"]
[White "Coro, Lucas"]
[Black "Gemy, Jose Daniel"]
[Result "1-0"]
[ECO "C78"]
[WhiteElo "2398"]
[BlackElo "2367"]
[Annotator "TA"]
[PlyCount "93"]
[EventDate "2022.05.30"]
[EventType "swiss"]
[EventCountry "BRA"]
[SourceTitle "playchess.com"]
[Source "ChessBase"]
[SourceQuality "1"]
[TimeControl "40/5400+30:1800+30"]

{[%evp 15,93,14,18,0,17,0,16,16,23,7,12,12,12,12,29,0,0,4,7,6,0,0,0,-6,-1,-20,-20,-20,0,0,0,0,9,-16,7,0,0,0,39,37,242,258,223,268,268,242,272,265,259,250,262,238,261,245,284,291,283,253,283,248,312,303,535,77,604,490,473,475,660,660,29982,29980,29980,29981,29992,29980,29996,29997,29997,29998]} 1. e4 {[%emt 0:00:06]} e5 {[%emt 0:00:05]} 2. Nf3 {[%emt 0:00:14]} Nc6 {[%emt 0:00:06]} 3. Bb5 {[%emt 0:00:26][%cal Bf1b5,Bb5a4,Ba4b3][%mdl 32]} a6 {[%emt 0:00:06]} 4. Ba4 {[%emt 0:00:18]} Nf6 {[%emt 0:00:05]} 5. d3 {[%emt 0:01:03]} Bc5 {[%emt 0:00:42]} 6. O-O {[%emt 0:01:29]} b5 {[%emt 0:00:04]} 7. Bb3 {[%emt 0:00:11]} d6 {[%emt 0:01:51]} 8. c3 {[%emt 0:01:24]} O-O {[%emt 0:02:17] 8...h6 deserves study.} 9. Nbd2 {[%emt 0:03:43] C78: Ruy Lopez: Archangelsk and Möller Defences.} Ba7 {[%emt 0:06:37]} 10. h3 {[%emt 0:01:38]} Be6 {[%emt 0:00:45]} 11. Re1 {[%emt 0:01:58] The position is equal.} Bxb3 {[%emt 0:04:23] [#]} 12. Nxb3 $146 {[%emt 0:01:41]} ({Predecessor:} 12. Qxb3 Re8 13. Nf1 h6 14. Ne3 Bxe3 15. Bxe3 d5 16. a4 dxe4 17. dxe4 Qd3 18. axb5 axb5 {½-½ (50) Saric,Z (2136)-Berke,A (2163) Topusko 2011}) 12... d5 {[%emt 0:01:29]} 13. Bg5 {[%emt 0:01:24] White wants to play Bxf6.} dxe4 {[%emt 0:02:55]} 14. dxe4 {[%emt 0:00:10]} Qe7 {[%emt 0:00:19]} 15. Qc1 {[%emt 0:03:38]} h6 {[%emt 0:04:53]} 16. Be3 {[%emt 0:00:51]} Bxe3 {[%emt 0:01:56]} 17. Qxe3 {[%emt 0:00:11]} Nd7 {[%emt 0:00:16]} 18. Nfd2 {[%emt 0:06:43][%cal Bf3d2,Bd2f1,Bf1e3][%mdl 32]} a5 {[%emt 0:02:04][%cal Ba6a5,Ba5a4][%mdl 32]} 19. Nf1 {[%emt 0:04:16]} a4 {[%emt 0:04:39]} 20. Nbd2 {[%emt 0:00:25]} Rfd8 {[%emt 0:03:14]} 21. Qe2 {[%emt 0:02:13]} Qc5 {[%emt 0:11:10]} 22. Ne3 {[%emt 0:05:06]} Nf6 {[%emt 0:08:12]} 23. Rac1 {[%emt 0:02:07]} g6 {[%emt 0:07:40]} 24. Red1 {[%emt 0:02:24]} Rd6 {[%emt 0:05:31]} 25. b4 {[%emt 0:05:51]} axb3 $1 {[%emt 0:01:36]} 26. Nxb3 {[%emt 0:00:26]} Rxd1+ {[%emt 0:00:41]} 27. Rxd1 {[%emt 0:01:02]} Qxc3 {[%emt 0:01:48] White now steadily converts the win.} ({Better is} 27... Qa7 $14) 28. Qf3 $18 {[%emt 0:03:53]} Nh5 {[%emt 0:11:09] [#] Hoping for ...Nd4.} 29. Rc1 {[%emt 0:00:13]} Nd4 {[%emt 0:00:13]} 30. Rxc3 {[%emt 0:00:28] Nxd4 is the strong threat.} Nxf3+ {[%emt 0:00:03]} 31. gxf3 {[%emt 0:00:10]} Rxa2 {[%emt 0:00:03]} 32. Rxc7 {[%emt 0:17:51] Strongly threatening Ng4.} Nf4 {[%emt 0:00:10]} 33. Ng4 {[%emt 0:00:07][%csl LRe5,LRh6]} Nxh3+ {[%emt 0:08:38]} 34. Kf1 {[%emt 0:01:14]} Rb2 {[%emt 0:06:31]} 35. Nc1 {[%emt 0:01:34]} ({Weaker is} 35. Nxe5 Rxb3 36. Rxf7 g5 $11) ({Don't do} 35. Nxh6+ Kg7 $18) 35... h5 {[%emt 0:04:21]} 36. Nxe5 {[%emt 0:01:43] Threatens to win with Ncd3.} Rxf2+ {[%emt 0:00:36]} 37. Ke1 {[%emt 0:00:04]} f5 {[%emt 0:00:48]} 38. Ncd3 {[%emt 0:09:44]} ({Don't play} 38. Nxg6 fxe4 39. fxe4 Rf6 $18) 38... Rg2 $2 {[%emt 0:00:11]} (38... Ra2 {might work better.} 39. exf5 Ra1+ 40. Ke2 gxf5) 39. Nc5 $2 {[%emt 0:00:05]} (39. Nb4 $18 {is more deadly. Nd5 would kill now.} Rg1+ 40. Kd2 Rg2+ 41. Ke3 f4+ 42. Kd4) 39... Rg1+ $2 {[%emt 0:01:16][%mdl 8192]} (39... Nf4 $16) 40. Kd2 {[%emt 0:00:30] [#] White threatens Ne6 and mate.} Ng5 {[%emt 0:00:16] Against Ne6} 41. Ke3 {[%emt 0:33:29]} h4 {[%emt 0:30:27]} 42. f4 {[%emt 0:09:19][%cal Bf3f4,Bf4g5][%mdl 32]} h3 {[%emt 0:00:38]} 43. Rc8+ {[%emt 0:00:00] White mates.} Kg7 {[%emt 0:00:00]} 44. fxg5 {[%emt 0:00:00]} f4+ {[%emt 0:00:29]} 45. Kf2 {[%emt 0:00:46]} h2 {[%emt 0:00:05]} 46. Ne6+ {[%emt 0:00:13]} Kh7 {[%emt 0:00:02]} 47. Rc7+ {[%emt 0:00:08] Weighted Error Value: White=0.30/Black=0.59} 1-0

[Event "1st Sales Oliveira Masters 2022"]
[Site "Sales Oliveira"]
[Date "2022.06.11"]
[Round "7.5"]
[White "Labussiere, Victor"]
[Black "Delgado Ramirez, Neuris"]
[Result "0-1"]
[ECO "E11"]
[WhiteElo "2349"]
[BlackElo "2603"]
[Annotator "TA"]
[PlyCount "54"]
[EventDate "2022.05.30"]
[EventType "swiss"]
[EventCountry "BRA"]
[SourceTitle "playchess.com"]
[Source "ChessBase"]
[SourceQuality "1"]
[TimeControl "40/5400+30:1800+30"]

{[%evp 12,54,16,6,35,27,37,39,32,18,26,15,10,-4,-5,-14,-22,-9,-27,-72,23,-210,-205,-299,-308,-298,-288,-318,-65,-55,-65,-278,-249,-301,-292,-503,-495,-565,-565,-789,-789,-29996,-29997,-29998,-29999]} 1. d4 {[%emt 0:00:33]} Nf6 {[%emt 0:00:05]} 2. c4 {[%emt 0:01:36]} e6 {[%emt 0:00:08]} 3. g3 {[%emt 0:00:59]} d5 {[%emt 0:00:09]} 4. Nf3 {[%emt 0:00:16]} Bb4+ {[%emt 0:00:15]} 5. Bd2 {[%emt 0:00:53]} a5 {[%emt 0:00:11]} 6. Qc2 {[%emt 0:01:11]} O-O {[%emt 0:00:40]} 7. Bg2 {[%emt 0:00:19]} c5 {[%emt 0:01:05] E11: Bogo-Indian.} 8. dxc5 {[%emt 0:11:33]} d4 {[%emt 0:01:12]} 9. Bxb4 {[%emt 0:02:23]} axb4 {[%emt 0:00:29] White is slightly better.} 10. Nbd2 {[%emt 0:04:52]} Nc6 {[%emt 0:00:04]} 11. Ng5 {[%emt 0:01:05]} h6 {[%emt 0:03:09]} (11... e5 {is more complex.} 12. O-O Qe7 13. e3 Bg4) 12. Bxc6 {[%emt 0:09:13]} bxc6 {[%emt 0:05:53]} 13. Ngf3 {[%emt 0:19:11]} e5 {[%emt 0:03:01]} 14. Nxe5 {[%emt 0:00:20]} Re8 $1 {[%emt 0:00:05] [#]} 15. Ndf3 $146 {[%emt 0:08:35] And now 0-0 would win.} (15. Nxc6 d3 16. Nxd8 dxc2 $17) ({Predecessor:} 15. Nd3 Bh3 16. Nf4 g5 17. Nd3 Qe7 18. Nb3 Qe4 19. O-O-O Rxa2 20. Nxb4 Ra4 21. Qxe4 Nxe4 {0-1 (68) Karr,J (2366)-Sokolov,A (2528) Drancy 2016}) 15... b3 {[%emt 0:07:59]} ({Black should play} 15... Bh3 $1 $17 {[%cal Rh3g2] Hoping for ...Bg2.} 16. Rg1 (16. Nxc6 d3 $15) 16... Qc7) 16. Qd1 $2 {[%emt 0:17:47]} (16. Qxb3 $11 Qa5+ 17. Kf1) 16... Qa5+ $19 {[%emt 0:01:22]} 17. Qd2 {[%emt 0:01:28]} (17. Kf1 {is a better defense.} bxa2 18. Nd3) 17... Qxd2+ $1 {[%emt 0:02:25]} (17... bxa2 18. Qxa5 Rxa5 19. O-O $11 (19. Nxc6 Rxc5 20. Ncxd4 Rxc4 $11)) (17... Qxc5 18. O-O Rxe5 19. Nxe5 Qxe5 20. axb3 $15) 18. Kxd2 {[%emt 0:00:04] [#]} Ne4+ $1 {[%emt 0:00:05]} ({Weaker is} 18... Rxa2 19. Rxa2 Ne4+ 20. Kd3 Nxf2+ 21. Kxd4 bxa2 22. Ra1 $16) ({Inferior is} 18... bxa2 19. Nd3 $11 (19. Nxc6 Ne4+ 20. Kc2 Nxf2 $15)) 19. Kc1 {[%emt 0:06:58]} Nxc5 {[%emt 0:07:39]} (19... Rxa2 $19 {[%cal Ra2a1]} 20. Rb1 Ra4) 20. a4 $1 $15 {[%emt 0:05:10]} Bf5 {[%emt 0:03:24][%cal Bc8f5,Bf5e4,Be4f3][%mdl 32] Prevents Nd3. Strongly threatening ...Be4.} 21. Re1 $2 {[%emt 0:00:30] [#]} (21. Rd1 $15) 21... Be4 $1 $19 {[%emt 0:04:30]} 22. Kd2 {[%emt 0:03:41]} f6 {[%emt 0:00:19]} ({Not} 22... Nxa4 23. Nd3 $11) (22... Rxa4 23. Rxa4 Nxa4 24. e3 $11 (24. Nd3 c5 $15)) 23. Nd3 {[%emt 0:00:48]} (23. Nd7 {keeps fighting.} Nxd7 24. Nxd4) 23... Nxd3 {[%emt 0:00:15][%mdl 64] Deflection} 24. exd3 {[%emt 0:00:06]} Bxf3 {[%emt 0:00:07]} 25. Rxe8+ {[%emt 0:00:12]} Rxe8 {[%emt 0:00:08]} 26. Ra3 {[%emt 0:00:01]} Re2+ {[%emt 0:00:37]} 27. Kc1 {[%emt 0:00:03]} Re1+ {[%emt 0:00:08] Weighted Error Value: White=0.96/Black=0.24 (precise)} 0-1

[Event "1st Sales Oliveira Masters 2022"]
[Site "Sales Oliveira"]
[Date "2022.06.12"]
[Round "8.1"]
[White "Fier, Alexandr"]
[Black "Delgado Ramirez, Neuris"]
[Result "1/2-1/2"]
[WhiteElo "2567"]
[BlackElo "2603"]
[Annotator "TA"]
[PlyCount "18"]
[EventDate "2022.05.30"]
[EventType "swiss"]
[EventCountry "BRA"]
[SourceTitle "playchess.com"]
[Source "ChessBase"]
[SourceQuality "1"]
[TimeControl "40/5400+30:1800+30"]

{[%evp 17,18,0,36]} 1. e4 {[%emt 0:18:10]} c5 {[%emt 0:00:25]} 2. Nf3 {[%emt 0:00:03]} d6 {[%emt 0:00:04]} 3. d4 {[%emt 0:00:02]} cxd4 {[%emt 0:00:05]} 4. Nxd4 {[%emt 0:00:02]} Nf6 {[%emt 0:00:07]} 5. Nc3 {[%emt 0:00:03]} a6 {[%emt 0:00:05] [#]} 6. Be3 $146 {[%emt 0:00:02]} ({Predecessor:} 6. a4 e5 7. Nf3 Be7 8. Bg5 Be6 9. Bxf6 Bxf6 10. Nd5 Nd7 11. Bc4 Rc8 12. Qe2 Nb6 13. Nxb6 Qxb6 14. Bxe6 fxe6 15. c3 O-O 16. O-O {0-1 (42) Anand,V (2751)-Giri,A (2761) Stavanger 2022}) 6... Ng4 {[%emt 0:00:06]} 7. Bc1 {[%emt 0:00:02]} Nf6 {[%emt 0:00:06]} 8. Be3 {[%emt 0:00:03]} Ng4 {[%emt 0:00:07] 8...Be6 is the recent fashion.} 9. Bc1 {[%emt 0:00:02]} Nf6 {[%emt 0:00:39]} 1/2-1/2